[Event "*** Titled Tuesday Blitz"]
[Site "Chess.com"]
[Date "2020.04.07"]
[Round "6"]
[White "GianmarcoVaR"]
[Black "Slovak_fighter2000"]
[Result "1-0"]
[WhiteElo "2640"]
[BlackElo "2485"]
[TimeControl "180+1"]
[EndTime "14:08:07 PDT"]
[Termination "GianmarcoVaR won by checkmate"]

1. d4 {[%clk 0:02:23]} 1... Nf6 {[%clk 0:02:59.3]} 2. c4 {[%clk 0:02:20.6]} 2...
e6 {[%clk 0:02:59.2]} 3. g3 {[%clk 0:02:15.4]} 3... d5 {[%clk 0:02:58.7]} 4. Bg2
{[%clk 0:02:15.6]} 4... Bb4+ {[%clk 0:02:59.2]} 5. Bd2 {[%clk 0:02:14.9]} 5...
Be7 {[%clk 0:02:59.6]} 6. Nf3 {[%clk 0:02:14.8]} 6... O-O {[%clk 0:03:00.1]} 7.
O-O {[%clk 0:02:15]} 7... c6 {[%clk 0:03:00.6]} 8. Qc2 {[%clk 0:02:15.4]} 8...
Nbd7 {[%clk 0:02:59.4]} 9. Bf4 {[%clk 0:02:15.8]} 9... Nh5 {[%clk 0:02:44.7]}
10. Bc1 {[%clk 0:02:15]} 10... Nhf6 {[%clk 0:02:44.6]} 11. b3 {[%clk 0:02:15.2]}
11... b6 {[%clk 0:02:43.9]} 12. Nbd2 {[%clk 0:02:12.8]} 12... Bb7 {[%clk
0:02:43]} 13. Bb2 {[%clk 0:01:49.7]} 13... Rc8 {[%clk 0:02:39.6]} 14. Rfd1
{[%clk 0:01:43]} 14... Qc7 {[%clk 0:02:26.5]} 15. e4 {[%clk 0:01:42.6]} 15...
dxe4 {[%clk 0:02:22.2]} 16. Nxe4 {[%clk 0:01:42.8]} 16... c5 {[%clk 0:02:06.2]}
17. Nxf6+ {[%clk 0:01:05.6]} 17... Nxf6 {[%clk 0:02:07.1]} 18. d5 {[%clk
0:00:58.4]} 18... exd5 {[%clk 0:02:03.8]} 19. cxd5 {[%clk 0:00:59.3]} 19... Bxd5
{[%clk 0:01:28.3]} 20. Ng5 {[%clk 0:00:47.6]} 20... h6 {[%clk 0:01:03.6]} 21.
Bxf6 {[%clk 0:00:46.9]} 21... hxg5 {[%clk 0:01:01.5]} 22. Bxe7 {[%clk
0:00:45.9]} 22... Bxg2 {[%clk 0:00:53.5]} 23. Bxf8 {[%clk 0:00:46]} 23... Bh3
{[%clk 0:00:53.2]} 24. Bd6 {[%clk 0:00:31.1]} 24... Qc6 {[%clk 0:00:52]} 25. f4
{[%clk 0:00:29.6]} 25... g4 {[%clk 0:00:46.9]} 26. Qd2 {[%clk 0:00:23.7]} 26...
Rd8 {[%clk 0:00:40.6]} 27. Qd5 {[%clk 0:00:20.3]} 27... Qb5 {[%clk 0:00:34.9]}
28. Rd2 {[%clk 0:00:15.2]} 28... Qb4 {[%clk 0:00:28.2]} 29. Rad1 {[%clk
0:00:14.9]} 29... Qc3 {[%clk 0:00:26.4]} 30. Qd3 {[%clk 0:00:12.1]} 30... Qf6
{[%clk 0:00:23.7]} 31. Be5 {[%clk 0:00:08.5]} 31... Rxd3 {[%clk 0:00:19.5]} 32.
Bxf6 {[%clk 0:00:08.9]} 32... Rf3 {[%clk 0:00:16.1]} 33. Bb2 {[%clk 0:00:05.6]}
33... Kh7 {[%clk 0:00:14.9]} 34. Re2 {[%clk 0:00:03.7]} 34... Kg6 {[%clk
0:00:14]} 35. Bc1 {[%clk 0:00:04]} 35... f6 {[%clk 0:00:13.9]} 36. Be3 {[%clk
0:00:04.2]} 36... Kf5 {[%clk 0:00:13.2]} 37. Rde1 {[%clk 0:00:03.5]} 37... g6
{[%clk 0:00:10.8]} 38. Rf2 {[%clk 0:00:03.1]} 38... Ke4 {[%clk 0:00:09.7]} 39.
Rxf3 {[%clk 0:00:03.2]} 39... Kxf3 {[%clk 0:00:10.6]} 40. Bf2 {[%clk 0:00:02.9]}
40... g5 {[%clk 0:00:08.1]} 41. Re3# {[%clk 0:00:03.3]} 1-0

[Event "*** Titled Tuesday Blitz"]
[Site "Chess.com"]
[Date "2020.04.07"]
[Round "6"]
[White "Bathory44"]
[Black "anon219"]
[Result "0-1"]
[WhiteElo "2548"]
[BlackElo "2799"]
[TimeControl "180+1"]
[EndTime "14:08:08 PDT"]
[Termination "anon219 won by resignation"]

1. e4 {[%clk 0:03:00.9]} 1... c6 {[%clk 0:02:59.1]} 2. c4 {[%clk 0:03:00.4]}
2... d5 {[%clk 0:03:00]} 3. cxd5 {[%clk 0:03:01.3]} 3... cxd5 {[%clk 0:03:00.5]}
4. exd5 {[%clk 0:03:01.9]} 4... Nf6 {[%clk 0:03:01.1]} 5. Nc3 {[%clk 0:03:02.4]}
5... Nxd5 {[%clk 0:02:57.5]} 6. Nf3 {[%clk 0:03:02.3]} 6... Nc6 {[%clk
0:02:57.4]} 7. Bb5 {[%clk 0:03:01.9]} 7... e6 {[%clk 0:02:52.6]} 8. O-O {[%clk
0:03:00.9]} 8... Be7 {[%clk 0:02:51.6]} 9. d4 {[%clk 0:03:00.6]} 9... O-O {[%clk
0:02:51.7]} 10. Re1 {[%clk 0:03:01.1]} 10... Bd7 {[%clk 0:02:43.1]} 11. Bd3
{[%clk 0:02:40.4]} 11... Bf6 {[%clk 0:02:40.1]} 12. Nxd5 {[%clk 0:02:26.3]}
12... exd5 {[%clk 0:02:38.8]} 13. Ne5 {[%clk 0:02:25.5]} 13... Nxd4 {[%clk
0:02:26.2]} 14. Bxh7+ {[%clk 0:02:20.5]} 14... Kxh7 {[%clk 0:02:27.1]} 15. Qxd4
{[%clk 0:02:21]} 15... Be6 {[%clk 0:02:26.7]} 16. Bf4 {[%clk 0:02:14.3]} 16...
Rc8 {[%clk 0:02:21.8]} 17. Rad1 {[%clk 0:02:06.5]} 17... Qa5 {[%clk 0:02:18.1]}
18. a3 {[%clk 0:01:54.4]} 18... g6 {[%clk 0:02:12.8]} 19. Qd3 {[%clk 0:01:43.9]}
19... Rfe8 {[%clk 0:02:11.8]} 20. Nxg6 {[%clk 0:01:27.2]} 20... Bf5 {[%clk
0:01:33.2]} 21. Nf8+ {[%clk 0:01:09.6]} 21... Kg7 {[%clk 0:01:28.6]} 22. Qg3+
{[%clk 0:01:07.4]} 22... Bg6 {[%clk 0:01:28.9]} 23. b4 {[%clk 0:00:24.3]} 23...
Qb5 {[%clk 0:00:55.1]} 24. Nxg6 {[%clk 0:00:23.5]} 24... fxg6 {[%clk 0:00:56]}
25. Qh3 {[%clk 0:00:23]} 25... Rh8 {[%clk 0:00:52.8]} 26. Qg3 {[%clk 0:00:21.3]}
26... Rce8 {[%clk 0:00:50.4]} 27. Be5 {[%clk 0:00:20.5]} 27... Qc6 {[%clk
0:00:43.2]} 28. Bxf6+ {[%clk 0:00:20.2]} 28... Qxf6 {[%clk 0:00:44.1]} 29. Qc7+
{[%clk 0:00:20.2]} 29... Kh6 {[%clk 0:00:42.4]} 30. Qxb7 {[%clk 0:00:20]} 30...
Rxe1+ {[%clk 0:00:40.3]} 31. Rxe1 {[%clk 0:00:19.7]} 31... Re8 {[%clk
0:00:41.2]} 32. Rf1 {[%clk 0:00:18.5]} 32... d4 {[%clk 0:00:37.6]} 33. Qd5
{[%clk 0:00:18.4]} 33... Rd8 {[%clk 0:00:36.5]} 34. Qf3 {[%clk 0:00:17.4]} 34...
Qxf3 {[%clk 0:00:31.8]} 35. gxf3 {[%clk 0:00:17.2]} 35... Kg5 {[%clk 0:00:32.4]}
36. Rd1 {[%clk 0:00:15.5]} 36... d3 {[%clk 0:00:32.8]} 37. Kf1 {[%clk
0:00:14.8]} 37... Kf4 {[%clk 0:00:33.3]} 38. Kg2 {[%clk 0:00:14.7]} 38... d2
{[%clk 0:00:32.8]} 39. h4 {[%clk 0:00:14.8]} 39... Rd3 {[%clk 0:00:31.8]} 40. a4
{[%clk 0:00:14.8]} 40... Ke5 {[%clk 0:00:30.8]} 41. b5 {[%clk 0:00:14.9]} 41...
Kd4 {[%clk 0:00:31.3]} 42. Kf1 {[%clk 0:00:15.4]} 42... Kc3 {[%clk 0:00:31.5]}
43. a5 {[%clk 0:00:14.7]} 43... Rd8 {[%clk 0:00:30.7]} 44. b6 {[%clk 0:00:12.8]}
44... axb6 {[%clk 0:00:30.4]} 45. axb6 {[%clk 0:00:12.8]} 45... Kc2 {[%clk
0:00:31.1]} 46. Rxd2+ {[%clk 0:00:11]} 46... Kxd2 {[%clk 0:00:31.6]} 47. Kg2
{[%clk 0:00:11.5]} 47... Rb8 {[%clk 0:00:30.6]} 48. Kg3 {[%clk 0:00:11.8]} 48...
Rxb6 {[%clk 0:00:31.1]} 49. Kg4 {[%clk 0:00:12.5]} 49... Rb5 {[%clk 0:00:31]}
50. f4 {[%clk 0:00:12.8]} 50... Ke2 {[%clk 0:00:31.6]} 51. f5 {[%clk 0:00:12.8]}
51... Rxf5 {[%clk 0:00:30.9]} 52. f4 {[%clk 0:00:13.7]} 52... Ke3 {[%clk
0:00:30.9]} 53. h5 {[%clk 0:00:13.8]} 53... Rxh5 {[%clk 0:00:30.7]} 54. f5
{[%clk 0:00:14.1]} 54... Rxf5 {[%clk 0:00:30.9]} 0-1

[Event "*** Titled Tuesday Blitz"]
[Site "Chess.com"]
[Date "2020.04.07"]
[Round "6"]
[White "RestartingChess"]
[Black "Keaton87"]
[Result "1-0"]
[WhiteElo "2377"]
[BlackElo "2600"]
[TimeControl "180+1"]
[EndTime "14:08:09 PDT"]
[Termination "RestartingChess won by checkmate"]

1. e4 {[%clk 0:03:00.6]} 1... c5 {[%clk 0:02:46.3]} 2. Nc3 {[%clk 0:03:00.1]}
2... a6 {[%clk 0:02:42]} 3. f4 {[%clk 0:02:59.9]} 3... b5 {[%clk 0:02:40.9]} 4.
a3 {[%clk 0:03:00]} 4... Bb7 {[%clk 0:02:41]} 5. Nf3 {[%clk 0:03:00.2]} 5... e6
{[%clk 0:02:41.5]} 6. Be2 {[%clk 0:03:00]} 6... d5 {[%clk 0:02:41.8]} 7. exd5
{[%clk 0:03:00.3]} 7... exd5 {[%clk 0:02:41.7]} 8. d4 {[%clk 0:03:00.8]} 8... c4
{[%clk 0:02:39.3]} 9. O-O {[%clk 0:03:00.8]} 9... Nf6 {[%clk 0:02:39.5]} 10. Ne5
{[%clk 0:03:00.4]} 10... Be7 {[%clk 0:02:38.9]} 11. Bf3 {[%clk 0:03:00.8]} 11...
O-O {[%clk 0:02:38.6]} 12. g4 {[%clk 0:02:47.5]} 12... Ne4 {[%clk 0:02:38.4]}
13. Bg2 {[%clk 0:02:19.7]} 13... Nd7 {[%clk 0:02:30.3]} 14. Bxe4 {[%clk
0:01:53]} 14... dxe4 {[%clk 0:02:29.7]} 15. d5 {[%clk 0:01:53.7]} 15... Nc5
{[%clk 0:02:18.9]} 16. Be3 {[%clk 0:01:19.9]} 16... Rc8 {[%clk 0:02:18.9]} 17.
g5 {[%clk 0:01:06.9]} 17... Nd7 {[%clk 0:02:06.5]} 18. d6 {[%clk 0:01:00]} 18...
Nxe5 {[%clk 0:01:56]} 19. dxe7 {[%clk 0:00:59.8]} 19... Qxe7 {[%clk 0:01:54]}
20. fxe5 {[%clk 0:00:59.7]} 20... Qxe5 {[%clk 0:01:54.5]} 21. Qd7 {[%clk
0:00:54.9]} 21... Bc6 {[%clk 0:01:53.2]} 22. Qf5 {[%clk 0:00:55]} 22... Qb8
{[%clk 0:01:44.9]} 23. Bc5 {[%clk 0:00:53]} 23... e3 {[%clk 0:01:41.1]} 24. Bxf8
{[%clk 0:00:49.1]} 24... Rxf8 {[%clk 0:01:42]} 25. Rae1 {[%clk 0:00:49.2]} 25...
Ba8 {[%clk 0:01:41.9]} 26. Rxe3 {[%clk 0:00:47.8]} 26... Qb7 {[%clk 0:01:41.7]}
27. Ne4 {[%clk 0:00:48.3]} 27... Qb6 {[%clk 0:01:37.9]} 28. Qf2 {[%clk
0:00:46.3]} 28... Qg6 {[%clk 0:01:36.8]} 29. Ng3 {[%clk 0:00:37.2]} 29... Qxg5
{[%clk 0:01:34.9]} 30. Re8 {[%clk 0:00:37.5]} 30... Qd5 {[%clk 0:01:28.6]} 31.
Rxf8+ {[%clk 0:00:29.2]} 31... Kxf8 {[%clk 0:01:29.5]} 32. Re1 {[%clk
0:00:17.6]} 32... h5 {[%clk 0:01:27.3]} 33. h4 {[%clk 0:00:17]} 33... g5 {[%clk
0:01:26.9]} 34. Ne4 {[%clk 0:00:14.2]} 34... gxh4 {[%clk 0:01:23.8]} 35. Qc5+
{[%clk 0:00:14.4]} 35... Kg7 {[%clk 0:01:19.6]} 36. Qxd5 {[%clk 0:00:14.5]}
36... Bxd5 {[%clk 0:01:20.4]} 37. Nd6 {[%clk 0:00:14.6]} 37... Kf6 {[%clk
0:01:18.8]} 38. Kh2 {[%clk 0:00:14.8]} 38... Kg5 {[%clk 0:01:17.3]} 39. Kh3
{[%clk 0:00:15.2]} 39... Be6+ {[%clk 0:01:13.1]} 40. Kg2 {[%clk 0:00:15]} 40...
Bd5+ {[%clk 0:01:13.5]} 41. Kh2 {[%clk 0:00:15.2]} 41... f6 {[%clk 0:01:10.8]}
42. Ne4+ {[%clk 0:00:15.5]} 42... Kf5 {[%clk 0:01:10.7]} 43. Nc5 {[%clk
0:00:16.1]} 43... a5 {[%clk 0:01:08.5]} 44. Nd7 {[%clk 0:00:16.5]} 44... Kg5
{[%clk 0:01:03.8]} 45. Rg1+ {[%clk 0:00:16.2]} 45... Kf5 {[%clk 0:01:01.4]} 46.
Rf1+ {[%clk 0:00:16.7]} 46... Ke6 {[%clk 0:00:58.1]} 47. Nxf6 {[%clk 0:00:17.2]}
47... Bc6 {[%clk 0:00:57.8]} 48. Nxh5 {[%clk 0:00:17.5]} 48... Be4 {[%clk
0:00:57.5]} 49. Nf4+ {[%clk 0:00:17.7]} 49... Ke5 {[%clk 0:00:57.2]} 50. c3
{[%clk 0:00:18.3]} 50... Bf5 {[%clk 0:00:53.1]} 51. Ng2 {[%clk 0:00:13.9]} 51...
Bh7 {[%clk 0:00:46.7]} 52. Re1+ {[%clk 0:00:12.7]} 52... Kd5 {[%clk 0:00:46]}
53. Nxh4 {[%clk 0:00:13.2]} 53... b4 {[%clk 0:00:43]} 54. Nf3 {[%clk 0:00:13.2]}
54... bxc3 {[%clk 0:00:39.4]} 55. bxc3 {[%clk 0:00:14.1]} 55... Kc5 {[%clk
0:00:39.7]} 56. Re5+ {[%clk 0:00:14.3]} 56... Kb6 {[%clk 0:00:39.2]} 57. Nd4
{[%clk 0:00:14.9]} 57... Bd3 {[%clk 0:00:37.7]} 58. Kg3 {[%clk 0:00:14.6]} 58...
a4 {[%clk 0:00:35.8]} 59. Kf4 {[%clk 0:00:15.1]} 59... Bc2 {[%clk 0:00:36.7]}
60. Kg5 {[%clk 0:00:15.4]} 60... Bb3 {[%clk 0:00:37.6]} 61. Kf6 {[%clk 0:00:16]}
61... Ka6 {[%clk 0:00:37.4]} 62. Ke6 {[%clk 0:00:16.5]} 62... Kb6 {[%clk
0:00:38.3]} 63. Kd5 {[%clk 0:00:17.1]} 63... Kc7 {[%clk 0:00:39.2]} 64. Re6
{[%clk 0:00:17.5]} 64... Kd7 {[%clk 0:00:39.6]} 65. Rd6+ {[%clk 0:00:17.9]}
65... Ke7 {[%clk 0:00:40.1]} 66. Ke5 {[%clk 0:00:18.5]} 66... Kf7 {[%clk
0:00:40.3]} 67. Nf5 {[%clk 0:00:19]} 67... Ke8 {[%clk 0:00:40.2]} 68. Ke6 {[%clk
0:00:19]} 68... Kf8 {[%clk 0:00:40.4]} 69. Rc6 {[%clk 0:00:19.5]} 69... Kg8
{[%clk 0:00:40.4]} 70. Kf6 {[%clk 0:00:19.6]} 70... Kh7 {[%clk 0:00:40.9]} 71.
Rc7+ {[%clk 0:00:18]} 71... Kg8 {[%clk 0:00:41.1]} 72. Kg6 {[%clk 0:00:16.2]}
72... Kf8 {[%clk 0:00:42]} 73. Rc8# {[%clk 0:00:16.7]} 1-0

[Event "*** Titled Tuesday Blitz"]
[Site "Chess.com"]
[Date "2020.04.07"]
[Round "6"]
[White "chessintuit"]
[Black "jk13"]
[Result "0-1"]
[WhiteElo "2616"]
[BlackElo "2829"]
[TimeControl "180+1"]
[EndTime "14:08:10 PDT"]
[Termination "jk13 won on time"]

1. e4 {[%clk 0:03:00.9]} 1... e5 {[%clk 0:03:00.2]} 2. Nf3 {[%clk 0:03:01.2]}
2... Nc6 {[%clk 0:03:00.7]} 3. Bb5 {[%clk 0:03:01.2]} 3... a6 {[%clk 0:03:01.1]}
4. Ba4 {[%clk 0:03:01.8]} 4... Nf6 {[%clk 0:03:01.8]} 5. d4 {[%clk 0:03:02.3]}
5... exd4 {[%clk 0:03:01.3]} 6. O-O {[%clk 0:03:02.6]} 6... b5 {[%clk
0:03:01.9]} 7. Bb3 {[%clk 0:03:02]} 7... d6 {[%clk 0:03:00.6]} 8. Ng5 {[%clk
0:03:01.9]} 8... Ne5 {[%clk 0:02:58.2]} 9. f4 {[%clk 0:02:58.3]} 9... Bg4 {[%clk
0:02:46.6]} 10. Qxd4 {[%clk 0:02:42.6]} 10... c5 {[%clk 0:02:46.5]} 11. Qc3
{[%clk 0:02:22.5]} 11... c4 {[%clk 0:02:27.3]} 12. fxe5 {[%clk 0:02:21.5]} 12...
dxe5 {[%clk 0:02:28.2]} 13. Bxc4 {[%clk 0:02:09.8]} 13... bxc4 {[%clk
0:02:24.8]} 14. Qxe5+ {[%clk 0:01:53.2]} 14... Be7 {[%clk 0:02:24.4]} 15. Nd2
{[%clk 0:01:52.4]} 15... O-O {[%clk 0:02:21.6]} 16. Nxc4 {[%clk 0:01:49.9]}
16... Be2 {[%clk 0:02:21.7]} 17. Ne3 {[%clk 0:01:39.6]} 17... Bxf1 {[%clk
0:02:09.4]} 18. Nxf1 {[%clk 0:01:39.1]} 18... Bd6 {[%clk 0:02:04.7]} 19. Qf5
{[%clk 0:01:32.1]} 19... Re8 {[%clk 0:01:58.4]} 20. Be3 {[%clk 0:01:07.2]} 20...
h6 {[%clk 0:01:54.9]} 21. Nf3 {[%clk 0:01:07.4]} 21... Nxe4 {[%clk 0:01:50.7]}
22. Bd4 {[%clk 0:01:07.7]} 22... Qc8 {[%clk 0:01:43.3]} 23. Qxc8 {[%clk
0:00:52]} 23... Raxc8 {[%clk 0:01:43]} 24. c3 {[%clk 0:00:51.8]} 24... Bc5
{[%clk 0:01:33]} 25. Rd1 {[%clk 0:00:51.7]} 25... Rcd8 {[%clk 0:01:26.8]} 26.
Ng3 {[%clk 0:00:34.2]} 26... Nxg3 {[%clk 0:01:23.9]} 27. hxg3 {[%clk 0:00:35.1]}
27... Re2 {[%clk 0:01:12.8]} 28. Rb1 {[%clk 0:00:32.5]} 28... Bxd4+ {[%clk
0:00:50.9]} 29. Nxd4 {[%clk 0:00:30.6]} 29... Rd2 {[%clk 0:00:50.8]} 30. a4
{[%clk 0:00:30.7]} 30... Rc8 {[%clk 0:00:42.3]} 31. Kf1 {[%clk 0:00:27.4]} 31...
Rc4 {[%clk 0:00:32.8]} 32. Nf3 {[%clk 0:00:22.9]} 32... Rd5 {[%clk 0:00:28.5]}
33. Ra1 {[%clk 0:00:23]} 33... Re4 {[%clk 0:00:28.2]} 34. b4 {[%clk 0:00:20.6]}
34... Rc4 {[%clk 0:00:26.5]} 35. Rc1 {[%clk 0:00:13.2]} 35... Rd3 {[%clk
0:00:25.4]} 36. Rb1 {[%clk 0:00:11.9]} 36... Rdxc3 {[%clk 0:00:23.8]} 37. Kf2
{[%clk 0:00:08.9]} 37... Rc2+ {[%clk 0:00:22.3]} 38. Ke3 {[%clk 0:00:09.2]}
38... R4c3+ {[%clk 0:00:21.2]} 39. Kd4 {[%clk 0:00:09.5]} 39... Ra3 {[%clk
0:00:20.6]} 40. b5 {[%clk 0:00:09.4]} 40... Rxa4+ {[%clk 0:00:20.8]} 41. Kd3
{[%clk 0:00:09.1]} 41... Rxg2 {[%clk 0:00:19.3]} 42. b6 {[%clk 0:00:09.4]} 42...
Ra3+ {[%clk 0:00:16.3]} 43. Ke4 {[%clk 0:00:04.5]} 43... Re2+ {[%clk 0:00:16]}
44. Kf4 {[%clk 0:00:04.9]} 44... Re8 {[%clk 0:00:15.3]} 45. b7 {[%clk
0:00:04.3]} 45... Rb8 {[%clk 0:00:15.9]} 46. Nd4 {[%clk 0:00:04.5]} 46... Rc3
{[%clk 0:00:16]} 47. Nf5 {[%clk 0:00:02.4]} 47... Rc7 {[%clk 0:00:14.5]} 48. Nd6
{[%clk 0:00:02.7]} 48... f6 {[%clk 0:00:13]} 49. Kf5 {[%clk 0:00:02.2]} 49...
Kf8 {[%clk 0:00:13.6]} 50. Ke6 {[%clk 0:00:02.5]} 50... Rc6 {[%clk 0:00:14.1]}
51. Kd7 {[%clk 0:00:01.5]} 51... Rc2 {[%clk 0:00:13.4]} 0-1

[Event "*** Titled Tuesday Blitz"]
[Site "Chess.com"]
[Date "2020.04.07"]
[Round "6"]
[White "joshdaruca"]
[Black "tacticthunder"]
[Result "1-0"]
[WhiteElo "2761"]
[BlackElo "2531"]
[TimeControl "180+1"]
[EndTime "14:08:10 PDT"]
[Termination "joshdaruca won on time"]

1. e4 {[%clk 0:03:00.4]} 1... c5 {[%clk 0:02:59.6]} 2. Nc3 {[%clk 0:02:59.4]}
2... Nc6 {[%clk 0:02:59.6]} 3. Bb5 {[%clk 0:02:58.7]} 3... Nf6 {[%clk
0:02:52.6]} 4. Nf3 {[%clk 0:02:55.9]} 4... Qc7 {[%clk 0:02:42.2]} 5. O-O {[%clk
0:02:53.1]} 5... a6 {[%clk 0:02:41.2]} 6. Bxc6 {[%clk 0:02:53]} 6... dxc6 {[%clk
0:02:40.2]} 7. d3 {[%clk 0:02:48.6]} 7... e5 {[%clk 0:02:38.8]} 8. h3 {[%clk
0:02:46.3]} 8... Bd6 {[%clk 0:02:29]} 9. a4 {[%clk 0:02:45.3]} 9... a5 {[%clk
0:02:27.7]} 10. Be3 {[%clk 0:02:44.4]} 10... b6 {[%clk 0:02:27]} 11. Nd2 {[%clk
0:02:37.9]} 11... Be6 {[%clk 0:02:26.6]} 12. b3 {[%clk 0:02:37]} 12... h6 {[%clk
0:02:21.8]} 13. Nc4 {[%clk 0:02:27.2]} 13... g5 {[%clk 0:02:17.4]} 14. Ne2
{[%clk 0:02:04.8]} 14... g4 {[%clk 0:01:43.5]} 15. hxg4 {[%clk 0:02:00.9]} 15...
Nxg4 {[%clk 0:01:44.4]} 16. Bd2 {[%clk 0:01:58.8]} 16... O-O-O {[%clk
0:01:30.6]} 17. f3 {[%clk 0:01:45.4]} 17... Nf6 {[%clk 0:01:29.5]} 18. Qe1
{[%clk 0:01:43.1]} 18... Rdg8 {[%clk 0:01:28.7]} 19. Bc3 {[%clk 0:01:40]} 19...
Rg6 {[%clk 0:01:05.1]} 20. Qh4 {[%clk 0:01:35.8]} 20... Rhg8 {[%clk 0:01:03.2]}
21. Rf2 {[%clk 0:01:32.5]} 21... Nd7 {[%clk 0:00:34.2]} 22. Kf1 {[%clk
0:01:19.4]} 22... f5 {[%clk 0:00:34.1]} 23. exf5 {[%clk 0:01:15.9]} 23... Bxf5
{[%clk 0:00:35]} 24. g4 {[%clk 0:01:15]} 24... Be6 {[%clk 0:00:34]} 25. Ng3
{[%clk 0:01:13.4]} 25... Nf6 {[%clk 0:00:32.1]} 26. Nf5 {[%clk 0:01:03.7]} 26...
Bxf5 {[%clk 0:00:21.4]} 27. gxf5 {[%clk 0:01:04.6]} 27... Rg5 {[%clk 0:00:18.5]}
28. f4 {[%clk 0:01:02.5]} 28... Rxf5 {[%clk 0:00:14.1]} 29. fxe5 {[%clk
0:01:00.3]} 29... Rxf2+ {[%clk 0:00:13.9]} 30. Qxf2 {[%clk 0:00:59.8]} 30... Ng4
{[%clk 0:00:13.6]} 31. Qf5+ {[%clk 0:00:59.2]} 31... Kb8 {[%clk 0:00:12.6]} 32.
exd6 {[%clk 0:00:52.8]} 32... Qd8 {[%clk 0:00:13]} 33. Ke2 {[%clk 0:00:51.5]}
33... Qh4 {[%clk 0:00:10.9]} 34. Rf1 {[%clk 0:00:45.3]} 34... Re8+ {[%clk
0:00:10.9]} 35. Kd1 {[%clk 0:00:44.5]} 35... Qh3 {[%clk 0:00:09.2]} 36. d7
{[%clk 0:00:43.3]} 36... Rd8 {[%clk 0:00:09.2]} 37. Kc1 {[%clk 0:00:42]} 37...
h5 {[%clk 0:00:08.4]} 38. Nxb6 {[%clk 0:00:40.6]} 38... Qe3+ {[%clk 0:00:07.9]}
39. Kb2 {[%clk 0:00:40.2]} 39... Qe2 {[%clk 0:00:08.1]} 40. Nc4 {[%clk
0:00:37.2]} 40... h4 {[%clk 0:00:06.7]} 41. Bxa5 {[%clk 0:00:37.4]} 41... Rxd7
{[%clk 0:00:05.3]} 42. Qxd7 {[%clk 0:00:35.2]} 1-0

[Event "*** Titled Tuesday Blitz"]
[Site "Chess.com"]
[Date "2020.04.07"]
[Round "6"]
[White "VitaliyBernadskiy"]
[Black "florianschwabeneder"]
[Result "1-0"]
[WhiteElo "2725"]
[BlackElo "2517"]
[TimeControl "180+1"]
[EndTime "14:08:11 PDT"]
[Termination "VitaliyBernadskiy won by checkmate"]

1. e4 {[%clk 0:03:00.9]} 1... c5 {[%clk 0:02:59.3]} 2. Nf3 {[%clk 0:03:00.5]}
2... d6 {[%clk 0:02:59.3]} 3. d4 {[%clk 0:03:01.1]} 3... cxd4 {[%clk 0:03:00.2]}
4. Nxd4 {[%clk 0:03:02]} 4... Nf6 {[%clk 0:03:00.5]} 5. Nc3 {[%clk 0:03:02.3]}
5... Nc6 {[%clk 0:03:00.8]} 6. Bg5 {[%clk 0:03:02]} 6... e6 {[%clk 0:03:00.7]}
7. Qd3 {[%clk 0:03:02.3]} 7... a6 {[%clk 0:02:56.6]} 8. Nxc6 {[%clk 0:02:59.9]}
8... bxc6 {[%clk 0:02:55.8]} 9. O-O-O {[%clk 0:03:00.5]} 9... Be7 {[%clk
0:02:42.9]} 10. f4 {[%clk 0:02:57.4]} 10... Qc7 {[%clk 0:02:30.8]} 11. Be2
{[%clk 0:02:56.1]} 11... Rb8 {[%clk 0:02:17.6]} 12. g4 {[%clk 0:02:54.1]} 12...
h6 {[%clk 0:02:15.5]} 13. Bh4 {[%clk 0:02:52.4]} 13... g5 {[%clk 0:02:15.2]} 14.
fxg5 {[%clk 0:02:52.2]} 14... Nd7 {[%clk 0:02:13.4]} 15. Bg3 {[%clk 0:02:51.2]}
15... Nc5 {[%clk 0:02:04.1]} 16. Qd4 {[%clk 0:02:50.3]} 16... e5 {[%clk
0:02:02.5]} 17. Qf2 {[%clk 0:02:34]} 17... hxg5 {[%clk 0:01:56.7]} 18. Bc4
{[%clk 0:02:32.9]} 18... Rh7 {[%clk 0:01:49.8]} 19. h3 {[%clk 0:02:20]} 19...
Qb6 {[%clk 0:01:41.8]} 20. Bb3 {[%clk 0:02:14.3]} 20... a5 {[%clk 0:01:36.1]}
21. Rhf1 {[%clk 0:01:58.5]} 21... f6 {[%clk 0:01:31.3]} 22. Kd2 {[%clk 0:00:48]}
22... Rxh3 {[%clk 0:01:11.4]} 23. Rb1 {[%clk 0:00:42.2]} 23... Bxg4 {[%clk
0:00:56.1]} 24. Qg2 {[%clk 0:00:42.2]} 24... a4 {[%clk 0:00:39.3]} 25. Bf2
{[%clk 0:00:32.1]} 25... Bd7 {[%clk 0:00:30.3]} 26. Nxa4 {[%clk 0:00:29.1]}
26... Qb4+ {[%clk 0:00:19]} 27. Nc3 {[%clk 0:00:28.9]} 27... Rxc3 {[%clk
0:00:06.6]} 28. bxc3 {[%clk 0:00:29.8]} 28... Nxe4+ {[%clk 0:00:07]} 29. Kc1
{[%clk 0:00:29.7]} 29... Qa3+ {[%clk 0:00:06.5]} 30. Rb2 {[%clk 0:00:29.3]}
30... Nxc3 {[%clk 0:00:05.9]} 31. Qh2 {[%clk 0:00:22.1]} 31... Nxa2+ {[%clk
0:00:03.8]} 32. Kd1 {[%clk 0:00:19]} 32... Qxb2 {[%clk 0:00:03.1]} 33. Qh8+
{[%clk 0:00:18.8]} 33... Bf8 {[%clk 0:00:03.3]} 34. Qxf6 {[%clk 0:00:17.9]}
34... Rxb3 {[%clk 0:00:01.2]} 35. Qg6+ {[%clk 0:00:12.9]} 35... Kd8 {[%clk
0:00:01.6]} 36. Bb6+ {[%clk 0:00:12.9]} 36... Kc8 {[%clk 0:00:01.6]} 37. Rxf8+
{[%clk 0:00:11.8]} 37... Kb7 {[%clk 0:00:02.2]} 38. Rb8+ {[%clk 0:00:10.1]}
38... Kxb8 {[%clk 0:00:02]} 39. Qxd6+ {[%clk 0:00:10.3]} 39... Kb7 {[%clk
0:00:02]} 40. Qc7+ {[%clk 0:00:10.6]} 40... Ka6 {[%clk 0:00:02.6]} 41. Qa7+
{[%clk 0:00:11.5]} 41... Kb5 {[%clk 0:00:03.1]} 42. Qa5+ {[%clk 0:00:12.1]}
42... Kc4 {[%clk 0:00:03.5]} 43. Qc5# {[%clk 0:00:13]} 1-0